[Event "Early-Titled-Tuesday-Blitz-July-09-2024"]
[Site "Chess.com"]
[Date "2024.07.09"]
[Round "1"]
[White "PositionalPanther"]
[Black "pouya21"]
[Result "0-1"]
[WhiteElo "2476"]
[BlackElo "2868"]
[TimeControl "180+1"]
[EndTime "8:09:00 PDT"]
[Termination "pouya21 won by resignation"]

1. Nf3 {[%clk 0:03:00.9]} 1... b6 {[%clk 0:02:57.9]} 2. e4 {[%clk 0:03:00.3]}
2... Bb7 {[%clk 0:02:58.5]} 3. Nc3 {[%clk 0:03:00.6]} 3... c5 {[%clk 0:02:58]}
4. d4 {[%clk 0:03:00.5]} 4... cxd4 {[%clk 0:02:57.5]} 5. Nxd4 {[%clk 0:03:01.4]}
5... e6 {[%clk 0:02:57.8]} 6. Be2 {[%clk 0:02:59.8]} 6... Bb4 {[%clk 0:02:57]}
7. O-O {[%clk 0:02:59.3]} 7... Nc6 {[%clk 0:02:50.5]} 8. Ndb5 {[%clk 0:02:56.4]}
8... Qb8 {[%clk 0:02:37.3]} 9. a3 {[%clk 0:02:55.9]} 9... Be7 {[%clk 0:02:34.2]}
10. Be3 {[%clk 0:02:44.3]} 10... Nf6 {[%clk 0:02:27.8]} 11. f3 {[%clk
0:02:42.4]} 11... O-O {[%clk 0:02:25]} 12. Kh1 {[%clk 0:02:41.4]} 12... a6
{[%clk 0:02:16.1]} 13. Nd4 {[%clk 0:02:40.6]} 13... Qc7 {[%clk 0:02:12.5]} 14.
Nxc6 {[%clk 0:02:40]} 14... Bxc6 {[%clk 0:02:11.6]} 15. Qe1 {[%clk 0:02:38.4]}
15... d5 {[%clk 0:02:05.7]} 16. exd5 {[%clk 0:02:34.5]} 16... Nxd5 {[%clk
0:02:06.6]} 17. Nxd5 {[%clk 0:02:34]} 17... Bxd5 {[%clk 0:02:07.5]} 18. Bd3
{[%clk 0:02:33.2]} 18... b5 {[%clk 0:02:03]} 19. a4 {[%clk 0:02:26]} 19... b4
{[%clk 0:02:02.7]} 20. b3 {[%clk 0:02:19]} 20... a5 {[%clk 0:02:00.1]} 21. Rd1
{[%clk 0:02:13.7]} 21... Bf6 {[%clk 0:01:59.3]} 22. Qf2 {[%clk 0:02:03.2]} 22...
g6 {[%clk 0:01:55.4]} 23. Bh6 {[%clk 0:02:00.5]} 23... Rfd8 {[%clk 0:01:52]} 24.
Qe3 {[%clk 0:01:57.9]} 24... Bb7 {[%clk 0:01:46.4]} 25. Bg5 {[%clk 0:01:43]}
25... Bxg5 {[%clk 0:01:40.9]} 26. Qxg5 {[%clk 0:01:43.9]} 26... Rd5 {[%clk
0:01:41.1]} 27. Qg3 {[%clk 0:01:42.2]} 27... Qd7 {[%clk 0:01:26]} 28. Be2 {[%clk
0:01:37.9]} 28... Rc8 {[%clk 0:01:25.1]} 29. Rxd5 {[%clk 0:01:34.5]} 29... Bxd5
{[%clk 0:01:25.6]} 30. Bb5 {[%clk 0:01:29.1]} 30... Qe7 {[%clk 0:01:23.9]} 31.
Bd3 {[%clk 0:01:28]} 31... Kg7 {[%clk 0:01:22.3]} 32. Qe5+ {[%clk 0:01:27.6]}
32... Qf6 {[%clk 0:01:22.5]} 33. Qxf6+ {[%clk 0:01:25.2]} 33... Kxf6 {[%clk
0:01:23.4]} 34. Re1 {[%clk 0:01:24.5]} 34... Rc3 {[%clk 0:01:23.1]} 35. Rd1
{[%clk 0:01:12.9]} 35... Ke5 {[%clk 0:01:23.3]} 36. Kg1 {[%clk 0:01:11.5]} 36...
f5 {[%clk 0:01:23.9]} 37. Kf2 {[%clk 0:01:11.7]} 37... g5 {[%clk 0:01:24.6]} 38.
Ke2 {[%clk 0:01:11.8]} 38... h5 {[%clk 0:01:23.6]} 39. Ke3 {[%clk 0:01:02]}
39... Rc8 {[%clk 0:01:15.3]} 40. Re1 {[%clk 0:00:58.8]} 40... f4+ {[%clk
0:01:06.4]} 41. Kd2+ {[%clk 0:00:58.6]} 41... Kf6 {[%clk 0:01:02.8]} 42. Be4
{[%clk 0:00:54.4]} 42... g4 {[%clk 0:01:02.3]} 43. Bxd5 {[%clk 0:00:53.9]} 43...
exd5 {[%clk 0:01:03.2]} 44. Re2 {[%clk 0:00:35.9]} 44... gxf3 {[%clk 0:01:01.3]}
45. gxf3 {[%clk 0:00:36.8]} 45... Rc3 {[%clk 0:01:01.6]} 46. Rf2 {[%clk
0:00:37.2]} 46... Re3 {[%clk 0:00:58.5]} 47. h4 {[%clk 0:00:34.3]} 47... Rc3
{[%clk 0:00:57.4]} 48. Rf1 {[%clk 0:00:34.4]} 48... Ke5 {[%clk 0:00:53.7]} 49.
Re1+ {[%clk 0:00:33.2]} 49... Kd4 {[%clk 0:00:53]} 50. Rf1 {[%clk 0:00:33.4]}
50... Re3 {[%clk 0:00:53.3]} 51. Rf2 {[%clk 0:00:33.4]} 51... Rc3 {[%clk
0:00:47.9]} 52. Rf1 {[%clk 0:00:33.7]} 52... Ke5 {[%clk 0:00:48.4]} 53. Re1+
{[%clk 0:00:33.4]} 53... Kf5 {[%clk 0:00:48.5]} 54. Rf1 {[%clk 0:00:34.1]} 54...
d4 {[%clk 0:00:49.2]} 55. Rg1 {[%clk 0:00:26.6]} 55... Rxf3 {[%clk 0:00:49.2]}
56. Rg5+ {[%clk 0:00:27.3]} 56... Ke4 {[%clk 0:00:49.9]} 57. Rxh5 {[%clk
0:00:22.5]} 57... Rf2+ {[%clk 0:00:46.6]} 58. Kd1 {[%clk 0:00:22.9]} 58... d3
{[%clk 0:00:46.2]} 59. cxd3+ {[%clk 0:00:21.8]} 59... Kxd3 {[%clk 0:00:47.1]}
60. Ke1 {[%clk 0:00:21.4]} 60... Re2+ {[%clk 0:00:46.9]} 61. Kf1 {[%clk
0:00:21.4]} 61... Rb2 {[%clk 0:00:43.6]} 62. Rxa5 {[%clk 0:00:21.7]} 62... Ke3
{[%clk 0:00:42.7]} 63. Re5+ {[%clk 0:00:19.3]} 63... Kf3 {[%clk 0:00:43.1]} 64.
Ke1 {[%clk 0:00:18.6]} 64... Rxb3 {[%clk 0:00:40.8]} 65. h5 {[%clk 0:00:19]}
65... Rb1+ {[%clk 0:00:40.5]} 66. Kd2 {[%clk 0:00:19.1]} 66... b3 {[%clk
0:00:40.5]} 67. h6 {[%clk 0:00:18.2]} 67... Rh1 {[%clk 0:00:40.4]} 68. Kc3
{[%clk 0:00:18.3]} 68... Rxh6 {[%clk 0:00:40.4]} 69. Kxb3 {[%clk 0:00:18.6]}
69... Kg2 {[%clk 0:00:37.6]} 70. a5 {[%clk 0:00:17.5]} 70... f3 {[%clk
0:00:38.1]} 71. Kb4 {[%clk 0:00:17.5]} 71... f2 {[%clk 0:00:34.2]} 72. Rf5
{[%clk 0:00:16.1]} 72... Rh4+ {[%clk 0:00:33.1]} 73. Kb5 {[%clk 0:00:08]} 73...
Rh5 {[%clk 0:00:33.5]} 74. Rxh5 {[%clk 0:00:06.9]} 74... f1=Q+ {[%clk
0:00:34.1]} 75. Kb6 {[%clk 0:00:05.8]} 75... Qf6+ {[%clk 0:00:30.3]} 76. Kb5
{[%clk 0:00:05.5]} 76... Qb2+ {[%clk 0:00:29.5]} 77. Kc5 {[%clk 0:00:02.6]}
77... Qc3+ {[%clk 0:00:26.7]} 78. Kd6 {[%clk 0:00:02.2]} 78... Qf6+ {[%clk
0:00:23.9]} 79. Kc5 {[%clk 0:00:01.4]} 79... Qe7+ {[%clk 0:00:24.4]} 80. Kb5
{[%clk 0:00:01.6]} 80... Qe8+ {[%clk 0:00:24.7]} 81. Kb6 {[%clk 0:00:02]} 81...
Qxh5 {[%clk 0:00:25.3]} 82. a6 {[%clk 0:00:02.8]} 82... Qg6+ {[%clk 0:00:25.6]}
83. Ka7 {[%clk 0:00:03.2]} 83... Qf7+ {[%clk 0:00:26.1]} 84. Kb8 {[%clk
0:00:03.4]} 84... Qe8+ {[%clk 0:00:26.5]} 85. Kb7 {[%clk 0:00:03.7]} 85... Qb5+
{[%clk 0:00:26.5]} 86. Ka7 {[%clk 0:00:03.2]} 86... Kf3 {[%clk 0:00:27]} 87. Ka8
{[%clk 0:00:02.4]} 87... Qxa6+ {[%clk 0:00:27.6]} 88. Kb8 {[%clk 0:00:02.7]}
88... Qh6 {[%clk 0:00:27.3]} 89. Kc7 {[%clk 0:00:03.6]} 89... Qe6 {[%clk
0:00:26.6]} 90. Kd8 {[%clk 0:00:04.5]} 0-1

[Event "Early-Titled-Tuesday-Blitz-July-09-2024"]
[Site "Chess.com"]
[Date "2024.07.09"]
[Round "1"]
[White "masterofpuppets2"]
[Black "honestgames"]
[Result "0-1"]
[WhiteElo "2467"]
[BlackElo "2856"]
[TimeControl "180+1"]
[EndTime "8:09:01 PDT"]
[Termination "honestgames won by checkmate"]

1. d4 {[%clk 0:03:00.9]} 1... Nf6 {[%clk 0:02:59.6]} 2. c4 {[%clk 0:03:00]} 2...
e6 {[%clk 0:03:00]} 3. Nf3 {[%clk 0:02:59.1]} 3... d5 {[%clk 0:02:59.9]} 4. Nc3
{[%clk 0:02:57.9]} 4... h6 {[%clk 0:02:57.8]} 5. Bf4 {[%clk 0:02:56.4]} 5... Bd6
{[%clk 0:02:57.6]} 6. e3 {[%clk 0:02:55.2]} 6... Bxf4 {[%clk 0:02:50.2]} 7. exf4
{[%clk 0:02:56.1]} 7... O-O {[%clk 0:02:49.4]} 8. Rg1 {[%clk 0:02:56.2]} 8...
dxc4 {[%clk 0:02:43.4]} 9. Bxc4 {[%clk 0:02:47]} 9... Qd6 {[%clk 0:02:40.9]} 10.
Qd2 {[%clk 0:02:41.8]} 10... Nd5 {[%clk 0:02:35.9]} 11. Ne5 {[%clk 0:02:30.9]}
11... Nb6 {[%clk 0:02:23.9]} 12. Be2 {[%clk 0:02:23.6]} 12... Nc6 {[%clk
0:02:14.5]} 13. O-O-O {[%clk 0:02:21.2]} 13... Ne7 {[%clk 0:01:40.6]} 14. g4
{[%clk 0:01:56]} 14... f6 {[%clk 0:01:32.9]} 15. Nc4 {[%clk 0:01:53]} 15... Nxc4
{[%clk 0:01:27.8]} 16. Bxc4 {[%clk 0:01:53.9]} 16... Kh8 {[%clk 0:00:54.1]} 17.
Kb1 {[%clk 0:01:48.6]} 17... Ng6 {[%clk 0:00:34.3]} 18. Ne2 {[%clk 0:01:41.6]}
18... Nh4 {[%clk 0:00:19.1]} 19. Qc3 {[%clk 0:01:28.3]} 19... Qc6 {[%clk
0:00:16.8]} 20. Rg3 {[%clk 0:01:20.4]} 20... b5 {[%clk 0:00:12.3]} 21. Bd3
{[%clk 0:01:17.2]} 21... Qxc3 {[%clk 0:00:11.7]} 22. Nxc3 {[%clk 0:01:18.1]}
22... a6 {[%clk 0:00:10.3]} 23. Be4 {[%clk 0:01:13.4]} 23... Rb8 {[%clk
0:00:10.1]} 24. Bc6 {[%clk 0:01:13.8]} 24... Rb6 {[%clk 0:00:10.2]} 25. Bh1
{[%clk 0:01:12.4]} 25... Bd7 {[%clk 0:00:08.4]} 26. d5 {[%clk 0:01:10.6]} 26...
e5 {[%clk 0:00:05.8]} 27. f5 {[%clk 0:01:06.6]} 27... g6 {[%clk 0:00:06.2]} 28.
fxg6 {[%clk 0:01:02]} 28... Nxg6 {[%clk 0:00:05.8]} 29. Ne4 {[%clk 0:01:02.6]}
29... Kg7 {[%clk 0:00:05.3]} 30. Nc5 {[%clk 0:01:02.5]} 30... Bc8 {[%clk
0:00:05.8]} 31. Rc3 {[%clk 0:00:56.4]} 31... Rf7 {[%clk 0:00:05.5]} 32. Rdc1
{[%clk 0:00:55.3]} 32... Nf4 {[%clk 0:00:05.8]} 33. Bf3 {[%clk 0:00:50.6]} 33...
f5 {[%clk 0:00:06.3]} 34. Rg1 {[%clk 0:00:39.5]} 34... Kf8 {[%clk 0:00:05.9]}
35. Ka1 {[%clk 0:00:31.6]} 35... Rd6 {[%clk 0:00:05.9]} 36. gxf5 {[%clk
0:00:27]} 36... Bxf5 {[%clk 0:00:06.8]} 37. Nb7 {[%clk 0:00:15.4]} 37... Rb6
{[%clk 0:00:06.7]} 38. Nc5 {[%clk 0:00:14.9]} 38... Nh3 {[%clk 0:00:06.3]} 39.
Rgc1 {[%clk 0:00:09.1]} 39... Nxf2 {[%clk 0:00:05.9]} 40. Bh5 {[%clk 0:00:08.9]}
40... Re7 {[%clk 0:00:05.8]} 41. Nb3 {[%clk 0:00:07.2]} 41... Kg7 {[%clk
0:00:04.7]} 42. Rxc7 {[%clk 0:00:07.1]} 42... Rxc7 {[%clk 0:00:04.4]} 43. Rxc7+
{[%clk 0:00:08]} 43... Kf6 {[%clk 0:00:05.3]} 44. Nd2 {[%clk 0:00:07.2]} 44...
Nd3 {[%clk 0:00:05.1]} 45. Be2 {[%clk 0:00:06.3]} 45... Nf4 {[%clk 0:00:05.2]}
46. Bf3 {[%clk 0:00:06.3]} 46... Ng6 {[%clk 0:00:04.2]} 47. Rc6+ {[%clk
0:00:05.9]} 47... Rxc6 {[%clk 0:00:04]} 48. dxc6 {[%clk 0:00:06.8]} 48... Ne7
{[%clk 0:00:03]} 49. c7 {[%clk 0:00:03.9]} 49... Bc8 {[%clk 0:00:03.4]} 50. Ne4+
{[%clk 0:00:03.3]} 50... Kg6 {[%clk 0:00:03.4]} 51. Nc5 {[%clk 0:00:04.2]} 51...
Kf5 {[%clk 0:00:03.1]} 52. Be4+ {[%clk 0:00:04.3]} 52... Kf4 {[%clk 0:00:03.6]}
53. Kb1 {[%clk 0:00:04.3]} 53... Ke3 {[%clk 0:00:03.7]} 54. Kc2 {[%clk
0:00:04.5]} 54... Kd4 {[%clk 0:00:04.2]} 55. b4 {[%clk 0:00:03.7]} 55... a5
{[%clk 0:00:04.8]} 56. a3 {[%clk 0:00:04.3]} 56... axb4 {[%clk 0:00:05.2]} 57.
axb4 {[%clk 0:00:05.2]} 57... Kc4 {[%clk 0:00:05.3]} 58. Nd3 {[%clk 0:00:05]}
58... Kd4 {[%clk 0:00:05.1]} 59. Nc5 {[%clk 0:00:03.8]} 59... h5 {[%clk
0:00:04.6]} 60. Kb3 {[%clk 0:00:03.9]} 60... h4 {[%clk 0:00:04.7]} 61. Bg2
{[%clk 0:00:04]} 61... h3 {[%clk 0:00:04.9]} 62. Bh1 {[%clk 0:00:04.6]} 62...
Nd5 {[%clk 0:00:03.9]} 63. Bf3 {[%clk 0:00:02.6]} 63... Ne3 {[%clk 0:00:03.5]}
64. Be4 {[%clk 0:00:03.1]} 64... Nc4 {[%clk 0:00:03.6]} 65. Bf3 {[%clk
0:00:02.8]} 65... Nd2+ {[%clk 0:00:03.9]} 66. Kc2 {[%clk 0:00:02.5]} 66... Nxf3
{[%clk 0:00:04.8]} 67. Nb3+ {[%clk 0:00:02.8]} 67... Kc4 {[%clk 0:00:04.7]} 68.
Nc5 {[%clk 0:00:02.8]} 68... Kxb4 {[%clk 0:00:04.8]} 69. Kd3 {[%clk 0:00:03.7]}
69... Kxc5 {[%clk 0:00:04.9]} 70. Ke4 {[%clk 0:00:04.6]} 70... Nxh2 {[%clk
0:00:05.1]} 71. Kxe5 {[%clk 0:00:05.5]} 71... Ng4+ {[%clk 0:00:05.6]} 72. Kf4
{[%clk 0:00:04.5]} 72... h2 {[%clk 0:00:06.5]} 73. Kg5 {[%clk 0:00:05.4]} 73...
h1=Q {[%clk 0:00:06.5]} 74. Kg6 {[%clk 0:00:06.3]} 74... Qb7 {[%clk 0:00:07.2]}
75. Kf7 {[%clk 0:00:07.2]} 75... Ne3 {[%clk 0:00:07.8]} 76. Ke8 {[%clk
0:00:08.1]} 76... Nc4 {[%clk 0:00:08.5]} 77. Kd8 {[%clk 0:00:09]} 77... b4
{[%clk 0:00:08.9]} 78. Ke7 {[%clk 0:00:09.9]} 78... b3 {[%clk 0:00:09.8]} 79.
Kd8 {[%clk 0:00:10.8]} 79... b2 {[%clk 0:00:10.7]} 80. Ke7 {[%clk 0:00:11.7]}
80... Qxc7+ {[%clk 0:00:11.1]} 81. Kf8 {[%clk 0:00:12.1]} 81... Kd4 {[%clk
0:00:10.5]} 82. Ke8 {[%clk 0:00:11.7]} 82... Ke5 {[%clk 0:00:11.4]} 83. Kf8
{[%clk 0:00:12.6]} 83... Kf6 {[%clk 0:00:11.8]} 84. Ke8 {[%clk 0:00:13.5]} 84...
Qd7+ {[%clk 0:00:12.3]} 85. Kf8 {[%clk 0:00:14.4]} 85... Qd8# {[%clk 0:00:12.6]}
0-1

[Event "Early-Titled-Tuesday-Blitz-July-09-2024"]
[Site "Chess.com"]
[Date "2024.07.09"]
[Round "1"]
[White "GulenayAydin"]
[Black "champ2005"]
[Result "1/2-1/2"]
[WhiteElo "2539"]
[BlackElo "3047"]
[TimeControl "180+1"]
[EndTime "8:09:04 PDT"]
[Termination "Game drawn by agreement"]

1. e4 {[%clk 0:02:53.4]} 1... a6 {[%clk 0:02:58.1]} 2. d4 {[%clk 0:02:47.5]}
2... e6 {[%clk 0:02:56.1]} 3. Nf3 {[%clk 0:02:46.8]} 3... d5 {[%clk 0:02:55.1]}
4. Nc3 {[%clk 0:02:44.6]} 4... Nf6 {[%clk 0:02:41.7]} 5. Bd3 {[%clk 0:02:41.4]}
5... c5 {[%clk 0:02:39.3]} 6. exd5 {[%clk 0:02:35.3]} 6... exd5 {[%clk 0:02:35]}
7. dxc5 {[%clk 0:02:17.1]} 7... Bxc5 {[%clk 0:02:35.9]} 8. O-O {[%clk
0:02:17.3]} 8... O-O {[%clk 0:02:33.5]} 9. Bg5 {[%clk 0:02:11.8]} 9... Bg4
{[%clk 0:02:27.1]} 10. h3 {[%clk 0:01:57.6]} 10... Bh5 {[%clk 0:02:27.1]} 11.
Bxf6 {[%clk 0:01:33]} 11... Qxf6 {[%clk 0:02:28]} 12. Nxd5 {[%clk 0:01:33.1]}
12... Qxb2 {[%clk 0:02:14.5]} 13. Rb1 {[%clk 0:01:11.7]} 13... Qxa2 {[%clk
0:02:12.7]} 14. Nf4 {[%clk 0:01:03.5]} 14... Bg6 {[%clk 0:02:08.5]} 15. Nxg6
{[%clk 0:00:59]} 15... hxg6 {[%clk 0:02:09.4]} 16. Rxb7 {[%clk 0:00:58.6]} 16...
Nc6 {[%clk 0:02:07]} 17. Qd2 {[%clk 0:00:42.2]} 17... Qd5 {[%clk 0:01:39.2]} 18.
Qf4 {[%clk 0:00:40.3]} 18... Nd4 {[%clk 0:01:32]} 19. Rbb1 {[%clk 0:00:28.1]}
19... Nxf3+ {[%clk 0:01:21]} 20. Qxf3 {[%clk 0:00:28.2]} 20... Qxf3 {[%clk
0:01:21.4]} 21. gxf3 {[%clk 0:00:29.1]} 21... a5 {[%clk 0:01:21.8]} 22. Bb5
{[%clk 0:00:24.1]} 22... a4 {[%clk 0:01:20.6]} 23. Bc4 {[%clk 0:00:19.1]} 23...
a3 {[%clk 0:01:16.5]} 24. Rb7 {[%clk 0:00:18.5]} 24... Bd4 {[%clk 0:01:02.9]}
25. Ba2 {[%clk 0:00:13.1]} 25... Rac8 {[%clk 0:01:02.5]} 26. Rd1 {[%clk
0:00:11.6]} 26... Bxf2+ {[%clk 0:00:58]} 27. Kxf2 {[%clk 0:00:09.5]} 27... Rxc2+
{[%clk 0:00:58.3]} 28. Kg3 {[%clk 0:00:09.9]} 28... Rxa2 {[%clk 0:00:58.5]} 29.
Ra7 {[%clk 0:00:10.2]} 29... g5 {[%clk 0:00:30.4]} 30. h4 {[%clk 0:00:08.8]}
30... gxh4+ {[%clk 0:00:29.9]} 31. Kxh4 {[%clk 0:00:09.7]} 31... Re8 {[%clk
0:00:28.6]} 32. Kg3 {[%clk 0:00:08.2]} 32... Re6 {[%clk 0:00:16]} 33. Rdd7
{[%clk 0:00:07.5]} 33... Rg6+ {[%clk 0:00:15.6]} 34. Kf4 {[%clk 0:00:07.8]}
34... Rf6+ {[%clk 0:00:16.5]} 35. Kg3 {[%clk 0:00:07.5]} 35... Ra1 {[%clk
0:00:15.7]} 36. Rd2 {[%clk 0:00:03.9]} 36... Rg6+ {[%clk 0:00:13.9]} 37. Kf2
{[%clk 0:00:04.1]} 37... Rb6 {[%clk 0:00:12.5]} 38. Rd8+ {[%clk 0:00:04.6]}
38... Kh7 {[%clk 0:00:12.5]} 39. Rd3 {[%clk 0:00:05.3]} 39... Rb2+ {[%clk
0:00:10.8]} 40. Ke3 {[%clk 0:00:05.2]} 40... a2 {[%clk 0:00:11.7]} 41. Rda3
{[%clk 0:00:05.8]} 41... Re1+ {[%clk 0:00:11]} 42. Kf4 {[%clk 0:00:05.7]} 42...
Ree2 {[%clk 0:00:09.8]} 43. R7a5 {[%clk 0:00:03.9]} 43... f6 {[%clk 0:00:09.6]}
44. Kg3 {[%clk 0:00:04.4]} 44... Kg6 {[%clk 0:00:10.1]} 45. Ra6 {[%clk
0:00:04.7]} 45... Rg2+ {[%clk 0:00:10.3]} 46. Kf4 {[%clk 0:00:04.8]} 46... Rbe2
{[%clk 0:00:09.8]} 47. R6a5 {[%clk 0:00:04.5]} 47... Rd2 {[%clk 0:00:08.9]} 48.
Ra6 {[%clk 0:00:04.9]} 48... Rgf2 {[%clk 0:00:09.3]} 49. R6a5 {[%clk 0:00:04.7]}
49... Rb2 {[%clk 0:00:09.7]} 50. Kg3 {[%clk 0:00:04.9]} 50... Rfd2 {[%clk
0:00:10.2]} 51. R5a4 {[%clk 0:00:05.5]} 51... Kh6 {[%clk 0:00:10.4]} 52. Rh4+
{[%clk 0:00:06]} 52... Kg6 {[%clk 0:00:10.9]} 53. Rg4+ {[%clk 0:00:06.8]} 53...
Kf5 {[%clk 0:00:09]} 54. Rga4 {[%clk 0:00:07.5]} 54... g5 {[%clk 0:00:08.5]} 55.
Ra5+ {[%clk 0:00:07.8]} 55... Kg6 {[%clk 0:00:09.1]} 56. Ra6 {[%clk 0:00:08.1]}
56... Rg2+ {[%clk 0:00:09.6]} 57. Kh3 {[%clk 0:00:08.1]} 57... Kh5 {[%clk
0:00:10]} 58. f4 {[%clk 0:00:05.9]} 58... Rh2+ {[%clk 0:00:08.4]} 59. Kg3 {[%clk
0:00:06.4]} 59... Rbg2+ {[%clk 0:00:08.2]} 60. Kf3 {[%clk 0:00:07]} 60... g4+
{[%clk 0:00:08.7]} 61. Ke4 {[%clk 0:00:07.5]} 61... g3 {[%clk 0:00:04.5]} 62.
Kf5 {[%clk 0:00:07.7]} 62... Rb2 {[%clk 0:00:03.6]} 63. R3a5 {[%clk 0:00:07.5]}
63... g2 {[%clk 0:00:03.3]} 64. Ra8 {[%clk 0:00:07.7]} 64... Kh4 {[%clk
0:00:03.1]} 65. Rh8+ {[%clk 0:00:05.9]} 65... Kg3 {[%clk 0:00:03.7]} 66. Ra3+
{[%clk 0:00:06.6]} 66... Kf2 {[%clk 0:00:04.2]} 67. Rxh2 {[%clk 0:00:07.3]}
67... Kf1 {[%clk 0:00:03.6]} 68. Rxg2 {[%clk 0:00:03.8]} 68... Kxg2 {[%clk
0:00:04.5]} 69. Kxf6 {[%clk 0:00:04.2]} 69... Kf2 {[%clk 0:00:05.2]} 70. f5
{[%clk 0:00:04.6]} 70... Ke2 {[%clk 0:00:06.1]} 71. Kg7 {[%clk 0:00:05.2]} 71...
Kd2 {[%clk 0:00:07]} 72. f6 {[%clk 0:00:05.4]} 72... Kc1 {[%clk 0:00:06.9]} 73.
f7 {[%clk 0:00:05.4]} 73... Rg2+ {[%clk 0:00:07.4]} 74. Kh7 {[%clk 0:00:04.7]}
74... Rf2 {[%clk 0:00:07.8]} 75. Rxa2 {[%clk 0:00:04.7]} 75... Rxf7+ {[%clk
0:00:07.2]} 76. Kg6 {[%clk 0:00:05.3]} 76... Rf8 {[%clk 0:00:06.9]} 1/2-1/2

[Event "Early-Titled-Tuesday-Blitz-July-09-2024"]
[Site "Chess.com"]
[Date "2024.07.09"]
[Round "1"]
[White "Alenzer"]
[Black "2Coaches1Profile"]
[Result "1/2-1/2"]
[WhiteElo "2163"]
[BlackElo "2563"]
[TimeControl "180+1"]
[EndTime "8:09:04 PDT"]
[Termination "Game drawn by repetition"]

1. e4 {[%clk 0:02:50.8]} 1... Nf6 {[%clk 0:02:59.9]} 2. e5 {[%clk 0:02:51]} 2...
Nd5 {[%clk 0:03:00.3]} 3. d4 {[%clk 0:02:51.3]} 3... d6 {[%clk 0:03:00.4]} 4.
Bc4 {[%clk 0:02:51.8]} 4... Nb6 {[%clk 0:03:00.2]} 5. Bb3 {[%clk 0:02:52.5]}
5... a5 {[%clk 0:02:59.6]} 6. exd6 {[%clk 0:02:50.5]} 6... cxd6 {[%clk
0:02:59.2]} 7. a4 {[%clk 0:02:49.8]} 7... g6 {[%clk 0:02:59.4]} 8. c3 {[%clk
0:02:49.4]} 8... Bg7 {[%clk 0:02:59.7]} 9. Nf3 {[%clk 0:02:49.6]} 9... O-O
{[%clk 0:03:00.6]} 10. O-O {[%clk 0:02:49.7]} 10... Nc6 {[%clk 0:03:00.6]} 11.
Bg5 {[%clk 0:02:48.8]} 11... h6 {[%clk 0:03:00.4]} 12. Bh4 {[%clk 0:02:49]}
12... Bg4 {[%clk 0:03:00.9]} 13. Nbd2 {[%clk 0:02:48.8]} 13... Qd7 {[%clk
0:02:58.8]} 14. Re1 {[%clk 0:02:48.8]} 14... Kh7 {[%clk 0:02:53.2]} 15. h3
{[%clk 0:02:45.2]} 15... Bf5 {[%clk 0:02:49.8]} 16. Bc2 {[%clk 0:02:42.2]} 16...
e5 {[%clk 0:02:43.1]} 17. dxe5 {[%clk 0:02:21.2]} 17... Bxc2 {[%clk 0:02:36.1]}
18. Qxc2 {[%clk 0:02:20.7]} 18... dxe5 {[%clk 0:02:36.6]} 19. Rad1 {[%clk
0:02:09.3]} 19... Qf5 {[%clk 0:02:15.8]} 20. Qb3 {[%clk 0:02:02.6]} 20... Ra6
{[%clk 0:02:11.7]} 21. Ne4 {[%clk 0:02:01.4]} 21... g5 {[%clk 0:01:54.5]} 22.
Bg3 {[%clk 0:01:39.2]} 22... Nc8 {[%clk 0:01:50.1]} 23. Qxb7 {[%clk 0:01:36.7]}
23... Rb6 {[%clk 0:01:50.1]} 24. Qd7 {[%clk 0:01:30.9]} 24... Qxd7 {[%clk
0:01:46.9]} 25. Rxd7 {[%clk 0:01:31.4]} 25... f5 {[%clk 0:01:47.3]} 26. Nc5
{[%clk 0:01:25.4]} 26... e4 {[%clk 0:01:38.4]} 27. Ne6 {[%clk 0:01:18.6]} 27...
Rg8 {[%clk 0:01:31.1]} 28. Nfd4 {[%clk 0:00:55.7]} 28... Nxd4 {[%clk 0:01:28.7]}
29. Nxd4 {[%clk 0:00:55.5]} 29... f4 {[%clk 0:01:26.4]} 30. Bh2 {[%clk 0:00:52]}
30... Rxb2 {[%clk 0:01:26.5]} 31. Nf5 {[%clk 0:00:32.2]} 31... Nb6 {[%clk
0:01:23.9]} 32. Re7 {[%clk 0:00:30.2]} 32... Nxa4 {[%clk 0:01:15.7]} 33. c4
{[%clk 0:00:28.5]} 33... Kg6 {[%clk 0:01:09.7]} 34. Nxg7 {[%clk 0:00:25.6]}
34... Rxg7 {[%clk 0:01:10.6]} 35. R7xe4 {[%clk 0:00:24.6]} 35... Nc5 {[%clk
0:01:08.2]} 36. Re5 {[%clk 0:00:23.8]} 36... Nd3 {[%clk 0:01:08.3]} 37. Re6+
{[%clk 0:00:24.4]} 37... Kh7 {[%clk 0:01:08.6]} 38. Rd1 {[%clk 0:00:22.8]} 38...
Nxf2 {[%clk 0:01:06.4]} 39. Rdd6 {[%clk 0:00:21.7]} 39... Rf7 {[%clk 0:00:37.4]}
40. Rxh6+ {[%clk 0:00:21.4]} 40... Kg7 {[%clk 0:00:36.7]} 41. Rhg6+ {[%clk
0:00:21.6]} 41... Kf8 {[%clk 0:00:37]} 42. Rxg5 {[%clk 0:00:19.2]} 42... Ne4
{[%clk 0:00:34.7]} 43. Rd8+ {[%clk 0:00:16.9]} 43... Ke7 {[%clk 0:00:34.8]} 44.
Re5+ {[%clk 0:00:17.5]} 44... Kxd8 {[%clk 0:00:34.3]} 45. Rxe4 {[%clk
0:00:18.4]} 45... a4 {[%clk 0:00:30.6]} 46. Bxf4 {[%clk 0:00:17.5]} 46... a3
{[%clk 0:00:24.9]} 47. Bg5+ {[%clk 0:00:11.1]} 47... Kc8 {[%clk 0:00:20.7]} 48.
c5 {[%clk 0:00:03.9]} 48... a2 {[%clk 0:00:20.2]} 49. Ra4 {[%clk 0:00:02.7]}
49... Rb1+ {[%clk 0:00:20.5]} 50. Kh2 {[%clk 0:00:03]} 50... a1=Q {[%clk
0:00:21.4]} 51. Rxa1 {[%clk 0:00:03.4]} 51... Rxa1 {[%clk 0:00:22.3]} 52. h4
{[%clk 0:00:03.4]} 52... Rc1 {[%clk 0:00:22]} 53. Bxc1 {[%clk 0:00:03.5]} 53...
Rf5 {[%clk 0:00:22.2]} 54. Bg5 {[%clk 0:00:03.9]} 54... Re5 {[%clk 0:00:22.9]}
55. g4 {[%clk 0:00:04.6]} 55... Rxc5 {[%clk 0:00:23.4]} 56. Kg3 {[%clk
0:00:05.4]} 56... Kd7 {[%clk 0:00:24.3]} 57. Kf4 {[%clk 0:00:06.2]} 57... Ke6
{[%clk 0:00:24.9]} 58. h5 {[%clk 0:00:06.8]} 58... Rc4+ {[%clk 0:00:25.5]} 59.
Kg3 {[%clk 0:00:07]} 59... Re4 {[%clk 0:00:24.8]} 60. Bf4 {[%clk 0:00:07.4]}
60... Ra4 {[%clk 0:00:24.2]} 61. Kf3 {[%clk 0:00:08.2]} 61... Ra3+ {[%clk
0:00:23.8]} 62. Ke4 {[%clk 0:00:08.6]} 62... Ra4+ {[%clk 0:00:24.7]} 63. Kf3
{[%clk 0:00:09.1]} 63... Kf6 {[%clk 0:00:24.9]} 64. Kg3 {[%clk 0:00:08.3]} 64...
Kg7 {[%clk 0:00:23.9]} 65. g5 {[%clk 0:00:07.7]} 65... Kf7 {[%clk 0:00:23.8]}
66. Kg4 {[%clk 0:00:08.3]} 66... Ke6 {[%clk 0:00:23.9]} 67. h6 {[%clk
0:00:08.9]} 67... Kf7 {[%clk 0:00:23.8]} 68. Kf5 {[%clk 0:00:09.1]} 68... Ra6
{[%clk 0:00:13.2]} 69. Be5 {[%clk 0:00:07.1]} 69... Kg8 {[%clk 0:00:10.8]} 70.
g6 {[%clk 0:00:07.5]} 70... Ra7 {[%clk 0:00:11]} 71. Kf6 {[%clk 0:00:06.5]}
71... Ra6+ {[%clk 0:00:10.9]} 72. Kf5 {[%clk 0:00:07.1]} 72... Ra7 {[%clk
0:00:10.2]} 73. Bf6 {[%clk 0:00:06.7]} 73... Ra5+ {[%clk 0:00:09.6]} 74. Be5
{[%clk 0:00:06.7]} 74... Ra7 {[%clk 0:00:09.1]} 1/2-1/2